bitfinex/quotes_BTCUSD_20250614
["timestamp","ask_amount","ask_price","bid_price","bid_amount"]
[1749895397597,0.7942902,105000.0,104990.0,0.43407137]
[1749895398173,0.60381401,105000.0,104990.0,0.43407137]
[1749895398328,0.60381401,105000.0,104990.0,0.38407137]
[1749895398580,0.60381401,105000.0,104990.0,0.43407137]
[1749895398906,0.7942902,105000.0,104990.0,0.37454729]
[1749895399124,0.7942902,105000.0,104990.0,0.36502312]
[1749895399341,0.78476703,105000.0,104990.0,0.36502312]
[1749895400166,0.78476703,105000.0,104990.0,0.36502321]
[1749895400591,0.78476703,105000.0,104990.0,0.41502321]
[1749895400808,0.77524377,105000.0,104990.0,0.36502321]
[1749895401413,0.77524377,105000.0,104990.0,0.3650233]
[1749895402067,0.77524377,105000.0,104990.0,0.37454765]
[1749895404594,0.76572024,105000.0,104990.0,0.3650233]
[1749895404799,0.2095237,105000.0,104990.0,0.3650233]
[1749895405006,0.76572024,105000.0,104990.0,0.3650233]
[1749895405426,0.76572024,105000.0,104990.0,0.20001886]
[1749895405634,0.20954276,104990.0,104980.0,0.29641592]
[1749895405823,0.7844393,104990.0,104980.0,0.28689057]
[1749895406068,0.76539087,104990.0,104980.0,0.4518961]
[1749895406276,0.74669087,104990.0,104980.0,0.46142145]
[1749895406904,0.74669087,104990.0,104980.0,0.46342145]
[1749895407122,0.74669087,104990.0,104980.0,0.46542145]
[1749895408067,0.74669087,104990.0,104980.0,0.47494671]
[1749895409120,0.75621558,104990.0,104980.0,0.5806211]
[1749895410038,0.02857278,104990.0,104980.0,0.59014599]
[1749895410254,0.58476932,104990.0,104980.0,0.59014599]
[1749895410461,0.58476923,104990.0,104980.0,0.59014599]
[1749895410713,0.57524479,104990.0,104980.0,0.59014599]
[1749895410957,0.58476923,104990.0,104980.0,0.59014599]
[1749895411374,0.58476923,104990.0,104980.0,0.49399677]
[1749895412835,0.02857269,104990.0,104980.0,0.49399677]
[1749895413035,0.58476923,104990.0,104980.0,0.49399677]
[1749895414498,0.59429376,104990.0,104980.0,0.49399677]
[1749895418792,0.58476923,104990.0,104980.0,0.49399677]
[1749895419224,0.59429376,104990.0,104980.0,0.49399677]
[1749895420672,0.59429376,104990.0,104980.0,0.59014599]
[1749895421190,0.59429376,104990.0,104980.0,0.49399677]
[1749895421710,0.03809722,104990.0,104980.0,0.49399677]
[1749895421917,0.59429376,104990.0,104980.0,0.49399677]
[1749895422325,0.58476923,104990.0,104980.0,0.49399677]
[1749895422539,0.58476923,104990.0,104980.0,0.54399677]
[1749895422731,0.58476923,104990.0,104980.0,0.49399677]
[1749895425491,0.58476923,104990.0,104980.0,0.54399677]
[1749895425708,0.58476923,104990.0,104980.0,0.49399677]
[1749895427093,0.02857269,104990.0,104980.0,0.49399677]
[1749895427316,0.58476923,104990.0,104980.0,0.49399677]
[1749895428270,0.58476923,104990.0,104980.0,0.33851677]
[1749895428503,0.26439173,104990.0,104980.0,0.47490652]
[1749895428716,0.82058827,104990.0,104980.0,0.47490662]
[1749895428931,0.63009394,104990.0,104980.0,0.48443169]
[1749895429143,0.82058827,104990.0,104980.0,0.48443169]
[1749895430689,0.6027772,104990.0,104980.0,0.48443169]
[1749895431315,0.62182635,104990.0,104980.0,0.33851667]
[1749895431519,0.63135061,104990.0,104980.0,0.47490662]
[1749895431725,0.6408746,104990.0,104980.0,0.47490662]
[1749895432423,0.63135061,104990.0,104980.0,0.47490662]
[1749895433068,0.63135061,104990.0,104980.0,0.46538145]
[1749895433277,0.77526428,104990.0,104980.0,0.51090652]
[1749895433485,0.77526428,104990.0,104980.0,0.51090662]
[1749895433715,0.77526428,104990.0,104980.0,0.47490662]
[1749895434834,0.77526428,104990.0,104980.0,0.52490662]
[1749895435022,0.77526428,104990.0,104980.0,0.47490662]
[1749895436286,0.02857341,104990.0,104980.0,0.58058082]
[1749895436538,0.21906774,104990.0,104980.0,0.61638082]
[1749895436950,0.02857323,104990.0,104980.0,0.61638082]
[1749895437161,0.02857323,104990.0,104980.0,0.46094082]
[1749895437382,0.02857323,104990.0,104980.0,0.61638082]
[1749895438177,0.02857323,104990.0,104980.0,0.5202316]
[1749895439323,0.22859227,104990.0,104980.0,0.50118145]
[1749895439526,0.22859227,104990.0,104980.0,0.49260662]
[1749895439732,0.22859227,104990.0,104980.0,0.50213169]
[1749895440042,0.78478881,104990.0,104980.0,0.50213169]
[1749895440689,0.78478881,104990.0,104980.0,0.55213169]
[1749895440893,0.78478881,104990.0,104980.0,0.50213169]
[1749895441110,0.78478881,104990.0,104980.0,0.51165667]
[1749895441904,0.78478881,104990.0,104980.0,0.48443169]
[1749895442618,0.78478881,104990.0,104980.0,0.49395667]
[1749895443062,0.78478881,104990.0,104980.0,0.51285667]
[1749895443280,0.78478881,104990.0,104980.0,0.56285667]
[1749895443479,0.78478881,104990.0,104980.0,0.53005667]
[1749895443711,0.58476977,104990.0,104980.0,0.53005667]
[1749895444042,0.78478872,104990.0,104980.0,0.53005667]
[1749895444461,0.22859218,104990.0,104980.0,0.53005667]
[1749895444883,0.22859218,104990.0,104980.0,0.52053169]
[1749895445089,0.22859218,104990.0,104980.0,0.52053188]
[1749895445301,0.78478872,104990.0,104980.0,0.50333188]
[1749895445543,0.83478872,104990.0,104980.0,0.51285695]
[1749895445961,0.83478872,104990.0,104980.0,0.56285695]
[1749895446165,0.83478872,104990.0,104980.0,0.51285695]
[1749895446608,0.28811689,104990.0,104980.0,0.51285695]
[1749895446821,0.84431343,104990.0,104980.0,0.53165695]
[1749895447063,0.83478917,104990.0,104980.0,0.47490662]
[1749895447586,0.83478917,104990.0,104980.0,0.48443169]
[1749895447789,0.83478917,104990.0,104980.0,0.47490662]
[1749895448096,0.27859263,104990.0,104980.0,0.47490662]
[1749895448235,0.83478917,104990.0,104980.0,0.47490662]
[1749895448437,0.27859263,104990.0,104980.0,0.57105584]
[1749895448625,0.27859263,104990.0,104980.0,0.58835584]
[1749895448626,0.83478917,104990.0,104980.0,0.58835584]
[1749895449026,0.83478917,104990.0,104980.0,0.49220662]
[1749895449207,0.83478917,104990.0,104980.0,0.51100662]
[1749895449871,0.8157402,104990.0,104980.0,0.00413634]
[1749895450083,0.80621558,104990.0,104980.0,0.35004881]
[1749895451161,0.80621558,104990.0,104980.0,0.35957443]
[1749895451363,0.80621558,104990.0,104980.0,0.00413634]
[1749895451571,0.80621558,104990.0,104980.0,0.35957434]
[1749895452009,0.80621558,104990.0,104980.0,0.36909978]
[1749895452466,0.80621558,104990.0,104980.0,0.37862513]
[1749895452680,0.80621558,104990.0,104980.0,0.47477435]
[1749895452996,0.79669087,104990.0,104980.0,0.36909978]
[1749895455714,0.79669087,104990.0,104980.0,0.41909978]
[1749895456284,0.79669087,104990.0,104980.0,0.36909978]
[1749895458622,0.83693087,104990.0,104980.0,0.36909978]
[1749895459478,0.28073433,104990.0,104980.0,0.37862513]
[1749895459681,0.83693087,104990.0,104980.0,0.37862513]
[1749895460734,0.28073433,104990.0,104980.0,0.42862513]
[1749895460951,0.83693087,104990.0,104980.0,0.37862513]
[1749895461916,0.83693087,104990.0,104980.0,0.39742513]
[1749895463375,0.83693087,104990.0,104980.0,0.38789978]
[1749895463588,0.83693087,104990.0,104980.0,0.35957434]
[1749895464221,0.83693087,104990.0,104980.0,0.36909978]
[1749895464848,0.28073433,104990.0,104980.0,0.36905978]
[1749895465061,0.83693087,104990.0,104980.0,0.35953434]
[1749895465695,0.83693087,104990.0,104980.0,0.37733434]
[1749895466548,0.83693087,104990.0,104980.0,0.35953434]
[1749895469007,0.83693087,104990.0,104980.0,0.36905978]
[1749895470046,0.83693087,104990.0,104980.0,0.35000881]
[1749895470254,0.83693087,104990.0,104980.0,0.35953443]
[1749895471104,0.83693087,104990.0,104980.0,0.36905996]
[1749895472352,0.83693087,104990.0,104980.0,0.3785854]
[1749895472758,0.83693087,104990.0,104980.0,0.4285854]
[1749895472981,0.83693087,104990.0,104980.0,0.3785854]
[1749895474549,0.83693087,104990.0,104980.0,0.25185075]
[1749895474776,0.83693087,104990.0,104980.0,0.42481075]
[1749895475080,0.28073433,104990.0,104980.0,0.53048514]
[1749895475287,0.83693087,104990.0,104980.0,0.52095997]
[1749895475797,0.83693087,104990.0,104980.0,0.42481075]
[1749895478520,0.83693087,104990.0,104980.0,0.4152854]
[1749895478733,0.83693087,104990.0,104980.0,0.38815996]
[1749895478974,0.83693087,104990.0,104980.0,0.39768531]
[1749895479402,0.83693087,104990.0,104980.0,0.38815996]
[1749895480030,0.83693087,104990.0,104980.0,0.3976854]
[1749895482784,0.83693087,104990.0,104980.0,0.20949634]
[1749895482995,0.83693087,104990.0,104980.0,0.35953434]
[1749895483449,0.28073433,104990.0,104980.0,0.35953434]
[1749895483663,0.83693087,104990.0,104980.0,0.36905978]
[1749895484162,0.83693087,104990.0,104980.0,0.41905978]
[1749895484366,0.83693087,104990.0,104980.0,0.36905978]
[1749895484571,0.83693087,104990.0,104980.0,0.35953434]
[1749895485315,0.83693087,104990.0,104980.0,0.20417434]
[1749895485516,0.83693087,104990.0,104980.0,0.35949434]
[1749895485929,0.83693087,104990.0,104980.0,0.15945634]
[1749895486134,0.28073433,104990.0,104980.0,0.15945634]
[1749895486368,0.83693087,104990.0,104980.0,0.05413634]
[1749895486602,1.13961792,104990.0,104980.0,0.05413634]
[1749895486815,1.13961792,104990.0,104980.0,0.00413634]
[1749895487072,0.92232484,104990.0,104980.0,0.00413634]
[1749895488498,0.92232484,104990.0,104980.0,0.00213634]
[1749895488791,0.92232484,104990.0,104980.0,0.00013634]
[1749895490290,0.2893883,104990.0,104980.0,0.05013634]
[1749895490535,0.84558484,104990.0,104980.0,0.00013634]
[1749895490753,1.04110484,104990.0,104980.0,0.00013634]
[1749895491627,1.04110484,104990.0,104980.0,0.03703634]
[1749895491848,0.88578484,104990.0,104980.0,0.27754881]
[1749895492090,1.04110484,104990.0,104980.0,0.08703634]
[1749895492307,0.84558484,104990.0,104980.0,0.22754881]
[1749895492745,1.04110484,104990.0,104980.0,0.23707443]
[1749895493228,1.04110484,104990.0,104980.0,0.24659996]
[1749895493695,0.84558484,104990.0,104980.0,0.24659996]
[1749895494117,0.88578484,104990.0,104980.0,0.2561254]
[1749895494770,0.85510955,104990.0,104980.0,0.26565066]
[1749895494983,0.89530955,104990.0,104980.0,0.2561254]
[1749895496173,0.89530955,104990.0,104980.0,0.24659996]
[1749895499420,0.89530955,104990.0,104980.0,0.29659996]
[1749895499624,0.89530955,104990.0,104980.0,0.2561254]
[1749895500303,0.89530955,104990.0,104980.0,0.23707443]
[1749895500746,0.89530955,104990.0,104980.0,0.24659996]
[1749895501831,0.85510955,104990.0,104980.0,0.23707443]
[1749895502042,0.88578484,104990.0,104980.0,0.23707443]
[1749895502490,0.88578484,104990.0,104980.0,0.04656196]
[1749895502727,0.88578484,104990.0,104980.0,0.03703634]
[1749895503847,0.88578484,104990.0,104980.0,0.08703634]
[1749895504032,0.88578484,104990.0,104980.0,0.03703634]
[1749895504883,0.88578484,104990.0,104980.0,0.08703634]
[1749895505092,0.88578484,104990.0,104980.0,0.03703634]
[1749895506602,0.3295883,104990.0,104980.0,0.00013634]
[1749895506807,0.88578484,104990.0,104980.0,0.00013634]
[1749895508451,0.98193406,104990.0,104980.0,0.00013634]
[1749895508681,1.26298484,104990.0,104980.0,0.00013634]
[1749895508906,1.28575283,104990.0,104980.0,0.00013634]
[1749895509124,6.36436783,104990.0,104980.0,0.00013634]
[1749895509619,6.51964783,104990.0,104980.0,0.00013634]
[1749895516899,6.51963237,104990.0,104980.0,0.00013634]
[1749895517554,6.51959237,104990.0,104980.0,0.00013634]
[1749895517797,1.46959237,104990.0,104980.0,0.00013634]
[1749895518019,1.44683984,104990.0,104980.0,0.00013634]
[1749895518884,1.25139984,104990.0,104980.0,0.00013634]
[1749895519149,1.44683984,104990.0,104980.0,0.00013634]
[1749895520236,1.25139984,104990.0,104980.0,0.00013634]
[1749895520449,1.44683984,104990.0,104980.0,0.00013634]
[1749895527026,1.42903984,104990.0,104980.0,0.00013634]
[1749895530284,1.52518906,104990.0,104980.0,0.00013634]
[1749895530503,1.42903984,104990.0,104980.0,0.00013634]
[1749895530711,1.40963984,104990.0,104980.0,0.00013634]
[1749895532627,1.432394,104990.0,104980.0,0.00013634]
[1749895537335,1.3930057,104990.0,104980.0,0.00013634]
[1749895538439,1.38806003,104990.0,104980.0,0.00013634]
[1749895538650,1.58346003,104990.0,104980.0,0.00013634]
[1749895538865,0.83186349,104990.0,104980.0,0.00013634]
[1749895539077,1.38806003,104990.0,104980.0,0.03693634]
[1749895539283,1.58346003,104990.0,104980.0,0.03693634]
[1749895540150,1.33346003,104990.0,104980.0,0.03693634]
[1749895540849,1.31070587,104990.0,104980.0,0.03693634]
[1749895546442,0.75450933,104990.0,104980.0,0.03693634]
[1749895546664,1.31070587,104990.0,104980.0,0.03693634]
[1749895547035,1.31066587,104990.0,104980.0,0.03693634]
[1749895547244,1.28205087,104990.0,104980.0,0.03693634]
[1749895547626,1.28205087,104990.0,104980.0,0.08693634]
[1749895547828,1.28205087,104990.0,104980.0,0.03693634]
[1749895548907,1.28205087,104990.0,104980.0,0.08693634]
[1749895549126,1.28205087,104990.0,104980.0,0.03693634]
[1749895549308,1.28205087,104990.0,104980.0,0.08693634]
[1749895549737,1.28205087,104990.0,104980.0,0.03693634]
[1749895549994,1.28205087,104990.0,104980.0,0.08693634]
[1749895550158,1.08669087,104990.0,104980.0,0.03693634]
[1749895550359,1.28205087,104990.0,104980.0,0.22744881]
[1749895550562,1.28205087,104990.0,104980.0,0.03693634]
[1749895550767,1.28205087,104990.0,104980.0,0.08693634]
[1749895550961,1.28205087,104990.0,104980.0,0.03693634]
[1749895551201,1.28205087,104990.0,104980.0,0.08693634]
[1749895551406,1.28205087,104990.0,104980.0,0.23697443]
[1749895551646,1.28205087,104990.0,104980.0,0.28697443]
[1749895551988,1.08669087,104990.0,104980.0,0.23697443]
[1749895552192,1.28205087,104990.0,104980.0,0.23697443]
[1749895552400,1.28205087,104990.0,104980.0,0.28697443]
[1749895553016,1.28205087,104990.0,104980.0,0.23697443]
[1749895553215,1.28205087,104990.0,104980.0,0.03693634]
[1749895553582,1.28205087,104990.0,104980.0,0.08693634]
[1749895553806,1.28205087,104990.0,104980.0,0.03693634]
[1749895554020,1.28205087,104990.0,104980.0,0.22744881]
[1749895554257,1.28205087,104990.0,104980.0,0.27744881]
[1749895554489,0.55906747,104990.0,104980.0,0.30602458]
[1749895554704,0.56859218,104990.0,104980.0,0.30602458]
[1749895554922,0.60871218,104990.0,104980.0,0.30602458]
[1749895555141,0.60871218,104990.0,104980.0,0.2964996]
[1749895555364,1.16490872,104990.0,104980.0,0.2964996]
[1749895555552,1.16490872,104990.0,104980.0,0.30602477]
[1749895555984,1.16490872,104990.0,104980.0,0.31754984]
[1749895556220,1.16490872,104990.0,104980.0,0.31954984]
[1749895556427,1.16490872,104990.0,104980.0,0.31002477]
[1749895556626,1.16490872,104990.0,104980.0,0.31954984]
[1749895557607,0.56859218,104990.0,104980.0,0.31954984]
[1749895557846,1.24187273,105000.0,104990.0,0.29644357]
[1749895558093,1.28199273,105000.0,104990.0,0.29644357]
[1749895558301,0.94199273,105000.0,104990.0,0.29644357]
[1749895558706,0.94199273,105000.0,104990.0,0.24644357]
[1749895559058,0.94199273,105000.0,104990.0,0.28691904]
[1749895559268,0.94199273,105000.0,104990.0,0.23691904]
[1749895559470,0.94199273,105000.0,104990.0,0.24644366]
[1749895559669,0.94199273,105000.0,104990.0,0.25596819]
[1749895559923,0.94199273,105000.0,104990.0,0.30596819]
[1749895560128,0.78679273,105000.0,104990.0,0.25596819]
[1749895560354,0.94199273,105000.0,104990.0,0.25596819]
[1749895560539,0.94199273,105000.0,104990.0,0.24644366]
[1749895561162,0.94199273,105000.0,104990.0,0.23691904]
[1749895561371,0.94199273,105000.0,104990.0,0.0369]
[1749895561579,0.94199273,105000.0,104990.0,0.22739433]
[1749895562192,0.94199273,105000.0,104990.0,0.27739433]
[1749895562407,0.94199273,105000.0,104990.0,0.22739433]
[1749895562614,0.94199273,105000.0,104990.0,0.23691904]
[1749895563655,0.94199273,105000.0,104990.0,0.0369]
[1749895565322,0.94199273,105000.0,104990.0,0.22739433]
[1749895565533,0.94199273,105000.0,104990.0,0.0369]
[1749895565950,0.94199273,105000.0,104990.0,0.22739433]
[1749895566161,0.94199273,105000.0,104990.0,0.27739433]
[1749895566274,0.94199273,105000.0,104990.0,0.0369]
[1749895567021,0.94199273,105000.0,104990.0,0.22739433]
[1749895567397,0.74667273,105000.0,104990.0,0.22739433]
[1749895567553,0.94199273,105000.0,104990.0,0.27739433]
[1749895567716,0.94199273,105000.0,104990.0,0.0369]
[1749895569204,0.94199273,105000.0,104990.0,0.0869]
[1749895569583,0.94199273,105000.0,104990.0,0.0369]
[1749895573588,0.38579619,105000.0,104990.0,0.2622229]
[1749895573822,0.94199273,105000.0,104990.0,0.2622229]
[1749895574030,0.94195273,105000.0,104990.0,0.22739433]
[1749895574424,0.94195273,105000.0,104990.0,0.27739433]
[1749895575062,0.94195273,105000.0,104990.0,0.28691895]
[1749895576291,0.94195273,105000.0,104990.0,0.27739433]
[1749895576509,0.94195273,105000.0,104990.0,0.23691904]
[1749895578011,0.38575619,105000.0,104990.0,0.23691904]
[1749895578193,0.94195273,105000.0,104990.0,0.23691904]
[1749895580429,0.94195273,105000.0,104990.0,0.24644366]
[1749895581664,0.94195273,105000.0,104990.0,0.23691904]
[1749895583746,0.94195273,105000.0,104990.0,0.28691904]
[1749895583952,0.74667273,105000.0,104990.0,0.23691904]
[1749895584160,0.94191273,105000.0,104990.0,0.23691904]
[1749895584581,0.94191273,105000.0,104990.0,0.28691904]
[1749895584800,0.94191273,105000.0,104990.0,0.29644366]
[1749895586354,0.94191273,105000.0,104990.0,0.24644366]
[1749895588477,0.94187273,105000.0,104990.0,0.24644366]
[1749895588902,0.94187273,105000.0,104990.0,0.29644366]
[1749895589154,0.94187273,105000.0,104990.0,0.24644366]
[1749895589670,0.94187273,105000.0,104990.0,0.29644366]
[1749895589877,0.94187273,105000.0,104990.0,0.24644366]
[1749895590660,0.94187273,105000.0,104990.0,0.23691904]
[1749895592755,0.94187273,105000.0,104990.0,0.22739433]
[1749895592966,0.19047619,105000.0,104990.0,0.22739433]
[1749895593187,0.94187273,105000.0,104990.0,0.22739433]
[1749895593411,0.95848786,105000.0,104990.0,0.22739433]
[1749895594883,0.95848786,105000.0,104990.0,0.27739433]
[1749895595087,0.95848786,105000.0,104990.0,0.22739433]
[1749895595292,0.40229132,105000.0,104990.0,0.23691904]
[1749895595513,0.95848786,105000.0,104990.0,0.23691904]
[1749895596492,0.95848786,105000.0,104990.0,0.28691904]
[1749895596698,0.95848786,105000.0,104990.0,0.22739433]
[1749895597226,0.94187273,105000.0,104990.0,0.29215747]
[1749895598145,0.94187273,105000.0,104990.0,0.28691895]
[1749895598360,0.94187273,105000.0,104990.0,0.23691895]
[1749895599378,0.94187273,105000.0,104990.0,0.0369]
[1749895600015,0.94187273,105000.0,104990.0,0.0869]
[1749895600233,0.94187273,105000.0,104990.0,0.22739433]
[1749895600454,0.94187273,105000.0,104990.0,0.0369]
[1749895600666,0.94187273,105000.0,104990.0,0.19049433]
[1749895600873,0.00952426,104990.0,104980.0,0.55838598]
[1749895601079,0.57524533,104990.0,104980.0,0.50838598]
[1749895601275,0.57524533,104990.0,104980.0,0.40326598]
[1749895601403,0.57524533,104990.0,104980.0,0.35326598]
[1749895601666,0.58476968,104990.0,104980.0,0.35326598]
[1749895602531,0.59429385,104990.0,104980.0,0.35326598]
[1749895602710,0.59429385,104990.0,104980.0,0.35526598]
[1749895603553,0.60381793,104990.0,104980.0,0.35526598]
[1749895603865,0.79431226,104990.0,104980.0,0.345741]
[1749895604103,0.60381856,104990.0,104980.0,0.35526607]
[1749895604287,0.59429385,104990.0,104980.0,0.36479105]
[1749895604500,0.63437385,104990.0,104980.0,0.36479105]
[1749895604705,0.64389847,104990.0,104980.0,0.51038607]
[1749895604944,0.64389847,104990.0,104980.0,0.56991105]
[1749895605415,0.64389847,104990.0,104980.0,0.51991105]
[1749895605431,0.64281847,104990.0,104980.0,0.51991105]
[1749895606194,0.62376968,104990.0,104980.0,0.61606027]
[1749895606434,0.82378872,104990.0,104980.0,0.51038607]
[1749895606692,0.82378872,104990.0,104980.0,0.56038607]
[1749895606944,0.82378872,104990.0,104980.0,0.51038653]
[1749895607425,0.81534446,104990.0,104980.0,0.4913361]
[1749895607647,0.81534446,104990.0,104980.0,0.51038671]
[1749895608098,0.81534446,104990.0,104980.0,0.51991188]
[1749895608528,0.81534446,104990.0,104980.0,0.52943695]
[1749895611579,0.25914792,104990.0,104980.0,0.52943695]
[1749895611803,0.81534446,104990.0,104980.0,0.52943695]
[1749895612460,0.81534446,104990.0,104980.0,0.51991188]
[1749895613972,0.81534446,104990.0,104980.0,0.52943695]
[1749895616411,0.81534446,104990.0,104980.0,0.51991188]
[1749895619913,0.81534446,104990.0,104980.0,0.52943695]
[1749895621315,0.81534446,104990.0,104980.0,0.00213634]
[1749895621540,0.9284448,104990.0,104980.0,0.05213634]
[1749895621756,0.9284448,104990.0,104980.0,0.00213634]
[1749895622200,0.83229558,104990.0,104980.0,0.00213634]
[1749895622431,0.78677087,104990.0,104980.0,0.00213634]
[1749895622665,0.78677087,104990.0,104980.0,0.19264881]
[1749895625232,0.59627654,104990.0,104980.0,0.19264881]
[1749895625462,0.78677087,104990.0,104980.0,0.19264881]
[1749895625876,0.23057433,104990.0,104980.0,0.19264881]
[1749895626105,0.78677087,104990.0,104980.0,0.19264881]
[1749895626321,0.78677087,104990.0,104980.0,0.20217443]
[1749895627473,0.05912861,104990.0,104980.0,0.3205275]
[1749895627700,0.08770175,104990.0,104980.0,0.33005248]
[1749895628121,0.01904825,104990.0,104980.0,0.38005248]
[1749895628351,0.06865278,104990.0,104980.0,0.38005248]
[1749895628559,0.00952399,104990.0,104980.0,0.38005248]
[1749895628766,0.0686526,104990.0,104980.0,0.38005248]
[1749895628983,0.01904816,104990.0,104980.0,0.38005248]
[1749895629197,0.06865251,104990.0,104980.0,0.38005248]
[1749895629850,0.04960399,104990.0,104980.0,0.88624902]
[1749895630061,0.06865242,104990.0,104980.0,0.31764993]
[1749895630266,0.06865233,104990.0,104980.0,0.31764993]
[1749895630705,0.06865233,104990.0,104980.0,0.26764993]
[1749895631136,0.06865224,104990.0,104980.0,0.31764993]
[1749895631334,0.06865224,104990.0,104980.0,0.26764993]
[1749895631977,0.07817659,104990.0,104980.0,0.26764993]
[1749895632197,0.06865224,104990.0,104980.0,0.26764993]
[1749895632401,0.06865224,104990.0,104980.0,0.31764993]
[1749895632624,0.06865224,104990.0,104980.0,0.26764993]
[1749895632830,0.05912807,104990.0,104980.0,0.31764993]
[1749895633462,1.15532296,105000.0,104990.0,0.28841895]
[1749895633674,1.15532296,105000.0,104990.0,0.4530233]
[1749895633875,1.14579979,105000.0,104990.0,0.44349895]
[1749895634083,1.14579979,105000.0,104990.0,0.39349895]
[1749895634284,1.14579979,105000.0,104990.0,0.44349895]
[1749895634495,1.14579979,105000.0,104990.0,0.45302348]
[1749895634729,1.14579979,105000.0,104990.0,0.46254792]
[1749895634941,1.14679979,105000.0,104990.0,0.46254792]
[1749895635605,1.14679979,105000.0,104990.0,0.47207209]
[1749895635872,0.96584731,105000.0,104990.0,0.46254792]
[1749895636091,1.1668473,105000.0,104990.0,0.47207209]
[1749895636525,0.96684731,105000.0,104990.0,0.48159617]
[1749895636740,1.1573235,105000.0,104990.0,0.48159653]
[1749895636960,0.40112706,105000.0,104990.0,0.48159599]
[1749895637186,0.61732297,105000.0,104990.0,0.46642456]
[1749895637400,0.6268465,105000.0,104990.0,0.46642456]
[1749895637822,0.02104643,105000.0,104990.0,0.46642456]
[1749895638025,0.06112643,105000.0,104990.0,0.46642456]
[1749895638250,0.61632297,105000.0,104990.0,0.46642456]
[1749895638650,0.61532297,105000.0,104990.0,0.46742456]
[1749895638906,0.6248465,105000.0,104990.0,0.46742456]
[1749895639110,0.6248465,105000.0,104990.0,1.03879253]
[1749895639111,0.04008,105000.0,104990.0,1.03879253]
[1749895639316,0.05912634,105000.0,104990.0,0.98879253]
[1749895639516,0.06864978,105000.0,104990.0,0.98879253]
[1749895639796,0.06864969,105000.0,104990.0,0.98879253]
[1749895640376,0.05912634,105000.0,104990.0,0.43259599]
[1749895640578,0.00952308,105000.0,104990.0,0.43259599]
[1749895641029,0.01904634,105000.0,104990.0,0.43259599]
[1749895641540,0.57524207,105010.0,105000.0,0.30614678]
[1749895641695,0.62480387,105010.0,105000.0,0.31566995]
[1749895642330,0.61528115,105010.0,105000.0,0.31566995]
[1749895642516,0.6343265,105010.0,105000.0,0.26566995]
[1749895642715,0.6363265,105010.0,105000.0,0.26566995]
[1749895643425,0.6363265,105010.0,105000.0,0.30049852]
[1749895643858,0.62680378,105010.0,105000.0,0.30049852]
[1749895644066,0.6363265,105010.0,105000.0,0.30049852]
[1749895644688,0.08012996,105010.0,105000.0,0.30049852]
[1749895644930,0.6363265,105010.0,105000.0,0.30049852]
[1749895645691,0.64584931,105010.0,105000.0,0.30049852]
[1749895645896,0.64584931,105010.0,105000.0,0.26566995]
[1749895646333,0.81726275,105010.0,105000.0,0.24662352]
[1749895646553,0.81726275,105010.0,105000.0,0.25614696]
[1749895647433,0.6363276,105010.0,105000.0,0.26567022]
[1749895647688,0.82678565,105010.0,105000.0,0.26567022]
[1749895648321,0.6268047,105010.0,105000.0,0.26567022]
[1749895648528,0.6268047,105010.0,105000.0,0.36181944]
[1749895648752,0.61728189,105010.0,105000.0,0.37134261]
[1749895648990,0.002,105010.0,105000.0,1.07378091]
[1749895649241,0.01152208,105010.0,105000.0,1.07378091]
[1749895649674,0.01152208,105010.0,105000.0,0.51758437]
[1749895649903,0.02104434,105010.0,105000.0,0.51758437]
[1749895650124,0.002,105010.0,105000.0,0.51758437]
[1749895650324,0.01152208,105010.0,105000.0,0.51758437]
[1749895652465,0.002,105010.0,105000.0,0.51758437]
[1749895654356,0.002,105010.0,105000.0,1.07378091]
[1749895656290,0.002,105010.0,105000.0,1.08832176]
[1749895656500,0.002,105010.0,105000.0,1.03832176]
[1749895656714,0.002,105010.0,105000.0,1.06332176]
[1749895657132,0.002,105010.0,105000.0,1.11332176]
[1749895657346,0.002,105010.0,105000.0,1.06332176]
[1749895659506,0.002,105010.0,105000.0,2.0095183]
[1749895659714,0.002,105010.0,105000.0,2.01668025]
[1749895660607,0.001,105010.0,105000.0,2.01668025]
[1749895660811,0.001,105010.0,105000.0,2.04068025]
[1749895661228,0.02,105020.0,105010.0,0.2585665]
[1749895661449,0.02,105020.0,105010.0,0.58117683]
[1749895661657,0.02,105020.0,105010.0,1.13737337]
[1749895662498,0.02,105020.0,105010.0,1.14937337]
[1749895662703,0.021,105020.0,105010.0,1.15737337]
[1749895669734,0.021,105020.0,105010.0,1.20737337]
[1749895669931,0.021,105020.0,105010.0,1.15737337]
[1749895680426,0.021,105020.0,105010.0,0.60117683]
[1749895680659,0.021,105020.0,105010.0,1.15737337]
[1749895682446,0.021,105020.0,105010.0,1.00233337]
[1749895682664,0.60576088,105020.0,105010.0,0.49528619]
[1749895682922,0.60576079,105020.0,105010.0,0.51433098]
[1749895683396,0.6152826,105020.0,105010.0,0.51433098]
[1749895683867,0.61528251,105020.0,105010.0,0.56433098]
[1749895684318,0.04004262,105020.0,105010.0,0.53933098]
[1749895684525,0.04004262,105020.0,105010.0,0.6604802]
[1749895684732,0.04004262,105020.0,105010.0,0.46593935]
[1749895684930,0.04004262,105020.0,105010.0,0.59593935]
[1749895685343,0.021,105020.0,105010.0,1.17713589]
[1749895685595,0.021,105020.0,105010.0,1.27189784]
[1749895687677,0.03052117,105020.0,105010.0,0.61955208]
[1749895687889,0.04004244,105020.0,105010.0,0.49979013]
[1749895688101,0.0590857,105020.0,105010.0,0.49979013]
[1749895688541,0.04956398,105020.0,105010.0,0.52479013]
[1749895688781,0.04956398,105020.0,105010.0,0.55695208]
[1749895689047,0.04004244,105020.0,105010.0,0.58195208]
[1749895689258,0.04956398,105020.0,105010.0,0.58195208]
[1749895689466,0.04956398,105020.0,105010.0,0.54979013]
[1749895689682,0.04956398,105020.0,105010.0,0.58195208]
[1749895689898,0.04004244,105020.0,105010.0,0.6781013]
[1749895690098,0.04956389,105020.0,105010.0,0.6781013]
[1749895690304,0.05908543,105020.0,105010.0,0.6781013]
[1749895690543,0.04956389,105020.0,105010.0,0.62093935]
[1749895691159,0.04956389,105020.0,105010.0,0.59593935]
[1749895691359,0.04956389,105020.0,105010.0,0.62093935]
[1749895691566,0.021,105020.0,105010.0,0.62093935]
[1749895691796,0.03052136,105020.0,105010.0,0.7162013]
[1749895692006,0.03052127,105020.0,105010.0,0.7162013]
[1749895692234,0.03052127,105020.0,105010.0,0.62005208]
[1749895692895,0.03052117,105020.0,105010.0,0.62005208]
[1749895695512,0.021,105020.0,105010.0,0.62005208]
[1749895697318,0.021,105020.0,105010.0,0.63459293]
[1749895703381,0.03052117,105020.0,105010.0,0.63459293]
[1749895703621,0.03052117,105020.0,105010.0,0.69264215]
[1749895704131,0.021,105020.0,105010.0,0.69264215]
[1749895704381,0.03052117,105020.0,105010.0,0.69264215]
[1749895704603,0.03052117,105020.0,105010.0,0.68624215]
[1749895704827,0.03052117,105020.0,105010.0,0.71124215]
[1749895705443,0.03052117,105020.0,105010.0,0.68624215]
[1749895705678,0.03052117,105020.0,105010.0,0.71124215]
[1749895705926,0.03052117,105020.0,105010.0,0.72884215]
[1749895707345,0.03052117,105020.0,105010.0,0.63269293]